{"text_format":"1","workbook":"xlsx","n_sheets":2,"sheets":["Лист1","шаблоны"],"not_rendered":{"charts":0,"images":0,"macros":1,"external_links":0,"defined_names":1,"comments":0,"pivot_tables":0},"unopened":[],"bounds":{"document_bytes":16777216,"sheet_cells":100000,"rows_first":2000,"rows_last":500,"rows_between":2000,"halvings":0,"cell_chars":16384,"cell_head_chars":4096},"cells_cut":0,"cells_raw":0,"read":"whole","date_system":"1900"}

{"sheet":"Лист1","index":0,"n_rows":19,"n_cols":9,"rows_kept":19,"cut":false,"hidden":false,"merged":[[2,2,2,3],[9,1,9,3],[0,0,0,8],[1,0,1,8],[3,0,3,8]]}
["  Определение трудозатрат на дополнительные проектные работы (услуги), "]
["сопутствующие работы (услуги) и среднего тарифного разряда исполнителей"]
[null,null,"По объекту №       "]
["Наименование объекта"]
[]
["№ п.п.","Наименование дополнительной проектной работы (услуги) и (или) сопутствующей работы (услуги)","Трудоём-кость работы (услуги),чел.-дн.","Должность исполнителя по КСД","Тарифный разряд исполнителя по ЕТС","Доля участия исполнителя в трудоёмкости работы (услуги), %","Средний тарифный разряд исполни-телей","Тарифный коэффи-циент для пересчёта стоимости","Стоимость услуг, руб"]
[1,2,3,4,5,6,7,8,9]
[null,null,null,null,null,null,null,"НДС 20%",{"$f":"I9*20%","v":0}]
[null,null,null,null,null,null,null,"Всего:"]
[null,"стоимость на  1 чел/день работы исп. 14 разряд на 2014 год в руб.-1115000"]
[null,"(Приказ Минстройархитектуры №169 от 13.06.2014 г.)"]
[]
[]
[null,"\"Согласовано\""]
[null,"Заказчик"]
[]
[null,"Зам. Директора по производству",null,"Д.А.Волков"]
[null,"ГИП",null,"А.М.Лосев"]
[null,"Составитель сметы",null,"А.Е.Кравченко"]

{"sheet":"шаблоны","index":1,"n_rows":28,"n_cols":9,"rows_kept":28,"cut":false,"hidden":false,"merged":[[4,7,8,7],[12,7,15,7],[18,7,20,7],[4,1,8,1],[12,1,15,1],[18,1,20,1],[23,1,24,1],[4,0,8,0],[12,0,15,0],[18,0,20,0],[23,0,24,0]]}
["№ п.п.","Наименование дополнительной проектной работы (услуги) и (или) сопутствующей работы (услуги)","Трудоём-кость работы (услуги),чел.-дн.","Должность исполнителя по КСД","Тарифный разряд исполнителя по ЕТС","Доля участия исполнителя в трудоёмкости работы (услуги), %","Средний тарифный разряд исполни-телей","Тарифный коэффи-циент для пересчёта стоимости","Стоимость услуг, руб"]
[1,2,3,4,5,6,7,8,9]
[null,1115000]
[]
[null,null,null,null,null,{"$f":"C5/(C5+C6+C7+C8+C9)*100","v":{"$error":"#DIV/0!"}},{"$f":"SUM(E5:E9)/5","v":0},null,{"$f":"шаблоны!$B$3*H5*SUM(C5:C9)","v":0}]
[null,null,null,null,null,{"$f":"C6/(C5+C6+C7+C8+C9)*100","v":{"$error":"#DIV/0!"}}]
[null,null,null,null,null,{"$f":"C7/(C5+C6+C7+C8+C9)*100","v":{"$error":"#DIV/0!"}}]
[null,null,null,null,null,{"$f":"C8/(C5+C6+C7+C8+C9)*100","v":{"$error":"#DIV/0!"}}]
[null,null,null,null,null,{"$f":"C9/(C5+C6+C7+C8+C9)*100","v":{"$error":"#DIV/0!"}}]
[null,null,null,null,null,{"$f":"SUM(F5:F9)","v":{"$error":"#DIV/0!"}}]
[]
[]
[null,null,null,null,null,{"$f":"C13/(C13+C14+C15+C16)*100","v":{"$error":"#DIV/0!"}},{"$f":"SUM(E13:E16)/4","v":0},null,{"$f":"шаблоны!$B$3*H13*SUM(C13:C16)","v":0}]
[null,null,null,null,null,{"$f":"C14/(C13+C14+C15+C16)*100","v":{"$error":"#DIV/0!"}}]
[null,null,null,null,null,{"$f":"C15/(C13+C14+C15+C16)*100","v":{"$error":"#DIV/0!"}}]
[null,null,null,null,null,{"$f":"C16/(C13+C14+C15+C16)*100","v":{"$error":"#DIV/0!"}}]
[null,null,null,null,null,{"$f":"SUM(F13:F16)","v":{"$error":"#DIV/0!"}}]
[]
[null,null,null,null,null,{"$f":"C19/(C19+C20+C21)*100","v":{"$error":"#DIV/0!"}},{"$f":"SUM(E19:E21)/3","v":0},null,{"$f":"шаблоны!$B$3*H19*SUM(C19:C21)","v":0}]
[null,null,null,null,null,{"$f":"C20/(C19+C20+C21)*100","v":{"$error":"#DIV/0!"}}]
[null,null,null,null,null,{"$f":"C21/(C19+C20+C21)*100","v":{"$error":"#DIV/0!"}}]
[null,null,null,null,null,{"$f":"SUM(F19:F21)","v":{"$error":"#DIV/0!"}}]
[]
[null,null,null,null,null,{"$f":"C24/(C24+C25)*100","v":{"$error":"#DIV/0!"}},{"$f":"SUM(E24:E25)/2","v":0},null,{"$f":"шаблоны!$B$3*H24*SUM(C24:C25)","v":0}]
[null,null,null,null,null,{"$f":"C25/(C24+C25)*100","v":{"$error":"#DIV/0!"}}]
[null,null,null,null,null,{"$f":"SUM(F24:F25)","v":{"$error":"#DIV/0!"}}]
[]
[null,null,null,null,null,{"$f":"100","v":100},{"$f":"E28","v":0},null,{"$f":"шаблоны!$B$3*H28*C28","v":0}]